fUST/lending_fUST_20250514
["ID","MTS","AMOUNT","RATE_DAILY","PERIOD"]
[360957828,1747163436596,-400.0,0.00013698,2]
[360957829,1747163436605,-400.0,0.00013698,2]
[360957830,1747163436615,-464.41977603,0.00013698,2]
[360957831,1747163436625,-400.0,0.00013698,2]
[360957832,1747163436634,-400.0,0.00013698,2]
[360957833,1747163436644,-462.41,0.00013698,2]
[360957834,1747163436660,-400.0,0.00013698,2]
[360957835,1747163436671,-400.0,0.00013698,2]
[360957836,1747163436681,-400.0,0.00013698,2]
[360957837,1747163436691,-400.0,0.00013698,2]
[360957838,1747163436702,-400.0,0.00013698,2]
[360957839,1747163436712,-400.0,0.00013698,2]
[360957840,1747163436722,-525.86,0.00013698,2]
[360957841,1747163436733,-1468.38,0.00013698,2]
[360957842,1747163436743,-515.1,0.00013698,2]
[360957843,1747163436753,-621.34,0.00013698,2]
[360957844,1747163436763,-400.0,0.00013698,2]
[360957845,1747163436773,-400.0,0.00013698,2]
[360957846,1747163436784,-400.0,0.00013698,2]
[360957847,1747163436794,-400.0,0.00013698,2]
[360957848,1747163436804,-400.0,0.00013698,2]
[360957849,1747163436816,-400.0,0.00013698,2]
[360957850,1747163436827,-900.06,0.00013698,2]
[360957851,1747163436838,-400.0,0.00013698,2]
[360957852,1747163436851,-1050.43,0.00013698,2]
[360957853,1747163436861,-400.0,0.00013698,2]
[360957854,1747163436872,-400.0,0.00013698,2]
[360957855,1747163436882,-1087.38,0.00013698,2]
[360957856,1747163436893,-773.42,0.00013698,2]
[360957857,1747163436903,-400.0,0.00013698,2]
[360957858,1747163436913,-400.0,0.00013698,2]
[360957859,1747163436923,-1489.52,0.00013698,2]
[360957860,1747163436933,-400.0,0.00013698,2]
[360957861,1747163436945,-400.0,0.00013698,2]
[360957862,1747163436955,-400.0,0.00013698,2]
[360957863,1747163436965,-400.0,0.00013698,2]
[360957864,1747163436976,-400.0,0.00013698,2]
[360957865,1747163436986,-526.94739218,0.00013698,2]
[360957866,1747163436997,-556.02,0.00013698,2]
[360957867,1747163437007,-394.16704078,0.00013698,2]
[360957868,1747163437017,-400.0,0.00013698,2]
[360957869,1747163437027,-400.0,0.00013698,2]
[360957870,1747163437037,-400.0,0.00013698,2]
[360957871,1747163437047,-400.0,0.00013698,2]
[360957872,1747163437060,-305.69582491,0.00013698,2]
[360957873,1747163437070,-400.0,0.00013698,2]
[360957874,1747163437080,-876.0,0.00013698,2]
[360957875,1747163437090,-400.0,0.00013698,2]
[360957876,1747163437100,-400.0,0.00013698,2]
[360957877,1747163437111,-400.0,0.00013698,2]
[360957878,1747163437121,-400.0,0.00013698,2]
[360957879,1747163437131,-400.0,0.00013698,2]
[360957880,1747163437142,-400.0,0.00013698,2]
[360957881,1747163437152,-1335.22,0.00013698,2]
[360957882,1747163437162,-400.0,0.00013698,2]
[360957883,1747163437172,-400.0,0.00013698,2]
[360957884,1747163437182,-400.0,0.00013698,2]
[360957885,1747163437192,-400.0,0.00013698,2]
[360957886,1747163437202,-1127.63,0.00013698,2]
[360957887,1747163437214,-468.37,0.00013698,2]
[360957888,1747163437223,-400.0,0.00013698,2]
[360957889,1747163437234,-851.78,0.00013698,2]
[360957890,1747163437244,-400.0,0.00013698,2]
[360957891,1747163437254,-400.0,0.00013698,2]
[360957892,1747163437265,-400.0,0.00013698,2]
[360957893,1747163437278,-400.0,0.00013698,2]
[360957894,1747163437292,-400.0,0.00013698,2]
[360957895,1747163437302,-400.0,0.00013698,2]
[360957896,1747163437314,-400.0,0.00013698,2]
[360957897,1747163437324,-443.57,0.00013698,2]
[360957898,1747163437334,-598.0,0.00013698,2]
[360957899,1747163437345,-400.0,0.00013698,2]
[360957900,1747163437355,-538.84334572,0.00013698,2]
[360957901,1747163437369,-400.0,0.00013698,2]
[360957902,1747163437379,-1853.3,0.00013698,2]
[360957903,1747163437389,-611.04,0.00013698,2]
[360957904,1747163437399,-400.0,0.00013698,2]
[360957905,1747163437409,-400.0,0.00013698,2]
[360957906,1747163437420,-400.0,0.00013698,2]
[360957907,1747163437432,-500.0,0.00013698,2]
[360957908,1747163437661,-400.0,0.00013698,2]
[360957909,1747163437681,-400.0,0.00013698,2]
[360957910,1747163437692,-539.51,0.00013698,2]
[360957911,1747163437703,-431.84,0.00013698,2]
[360957912,1747163437713,-913.94,0.00013698,2]
[360957913,1747163437723,-400.0,0.00013698,2]
[360957914,1747163437733,-690.21,0.00013698,2]
[360957915,1747163437742,-960.23,0.00013698,2]
[360957916,1747163437752,-400.0,0.00013698,2]
[360957917,1747163437762,-400.0,0.00013698,2]
[360957918,1747163437772,-400.0,0.00013698,2]
[360957919,1747163437781,-400.0,0.00013698,2]
[360957920,1747163437792,-400.0,0.00013698,2]
[360957921,1747163437801,-3210.06,0.00013698,2]
[360957922,1747163437812,-433.99,0.00013698,2]
[360957923,1747163437822,-400.0,0.00013698,2]
[360957924,1747163437833,-1175.15,0.00013698,2]
[360957925,1747163437843,-400.0,0.00013698,2]
[360957926,1747163437853,-400.0,0.00013698,2]
[360957927,1747163437865,-562.23,0.00013698,2]
[360957928,1747163437876,-400.0,0.00013698,2]
[360957929,1747163437893,-458.34631231,0.00013698,2]
[360957930,1747163437903,-1992.05,0.00013698,2]
[360957931,1747163437913,-400.0,0.00013698,2]
[360957932,1747163437924,-400.0,0.00013698,2]
[360957933,1747163437934,-400.0,0.00013698,2]
[360957934,1747163437944,-400.0,0.00013698,2]
[360957935,1747163437954,-400.0,0.00013698,2]
[360957936,1747163437964,-462.41,0.00013698,2]
[360957937,1747163437975,-400.0,0.00013698,2]
[360957938,1747163437985,-400.0,0.00013698,2]
[360957939,1747163437995,-1070.01,0.00013698,2]
[360957940,1747163438004,-400.0,0.00013698,2]
[360957941,1747163438014,-400.0,0.00013698,2]
[360957942,1747163438024,-285.43065449,0.00013698,2]
[360957943,1747163438033,-400.0,0.00013698,2]
[360957944,1747163438043,-637.72,0.00013698,2]
[360957945,1747163438054,-400.0,0.00013698,2]
[360957946,1747163438066,-1961.25,0.00013698,2]
[360957947,1747163438076,-400.0,0.00013698,2]
[360957948,1747163438086,-400.0,0.00013698,2]
[360957949,1747163438096,-400.0,0.00013698,2]
[360957950,1747163438106,-400.0,0.00013698,2]
[360957951,1747163438116,-400.0,0.00013698,2]
[360957952,1747163438140,-400.0,0.00013698,2]
[360957953,1747163438153,-400.0,0.00013698,2]
[360957955,1747163438164,-400.0,0.00013698,2]
[360957957,1747163438176,-400.0,0.00013698,2]
[360957959,1747163438187,-400.0,0.00013698,2]
[360957961,1747163438197,-400.0,0.00013698,2]
[360957963,1747163438209,-400.0,0.00013698,2]
[360957964,1747163438219,-484.34,0.00013698,2]
[360957965,1747163438231,-400.0,0.00013698,2]
[360957966,1747163438241,-400.0,0.00013698,2]
[360957967,1747163438252,-400.0,0.00013698,2]
[360957968,1747163438265,-1393.04,0.00013698,2]
[360957969,1747163438276,-400.0,0.00013698,2]
[360957970,1747163438286,-400.0,0.00013698,2]
[360957971,1747163438296,-400.0,0.00013698,2]
[360957972,1747163438307,-400.0,0.00013698,2]
[360957973,1747163438316,-604.84,0.00013698,2]
[360957974,1747163438326,-400.0,0.00013698,2]
[360957975,1747163438336,-400.0,0.00013698,2]
[360957976,1747163438348,-400.0,0.00013698,2]
[360957977,1747163438359,-400.0,0.00013698,2]
[360957978,1747163438370,-400.0,0.00013698,2]
[360957979,1747163438380,-1545.27,0.00013698,2]
[360957980,1747163438390,-460.53,0.00013698,2]
[360957981,1747163438400,-400.0,0.00013698,2]
[360957982,1747163438410,-520.75,0.00013698,2]
[360957984,1747163438421,-400.0,0.00013698,2]
[360957986,1747163438431,-2436.04,0.00013698,2]
[360957988,1747163438442,-460.01,0.00013698,2]
[360957990,1747163438452,-400.0,0.00013698,2]
[360957992,1747163438463,-400.0,0.00013698,2]
[360957994,1747163438473,-400.0,0.00013698,2]
[360957996,1747163438483,-400.0,0.00013698,2]
[360957998,1747163438493,-400.0,0.00013698,2]
[360958000,1747163438503,-400.0,0.00013698,2]
[360958003,1747163438513,-400.0,0.00013698,2]
[360958005,1747163438523,-400.0,0.00013698,2]
[360958007,1747163438534,-400.0,0.00013698,2]
[360958010,1747163438544,-400.0,0.00013698,2]
[360958013,1747163438554,-400.0,0.00013698,2]
[360958015,1747163438566,-400.0,0.00013698,2]
[360958017,1747163438576,-400.0,0.00013698,2]
[360958020,1747163438587,-400.0,0.00013698,2]
[360958022,1747163438598,-981.95,0.00013698,2]
[360958024,1747163438608,-400.0,0.00013698,2]
[360958026,1747163438618,-400.0,0.00013698,2]
[360958028,1747163438628,-1422.81,0.00013698,2]
[360958030,1747163438638,-400.0,0.00013698,2]
[360958032,1747163438648,-400.0,0.00013698,2]
[360958034,1747163438659,-409.86,0.00013698,2]
[360958036,1747163438669,-490.56,0.00013698,2]
[360958038,1747163438679,-400.0,0.00013698,2]
[360958041,1747163438690,-914.31,0.00013698,2]
[360958043,1747163438700,-400.0,0.00013698,2]
[360958045,1747163438710,-532.14,0.00013698,2]
[360958047,1747163438721,-400.0,0.00013698,2]
[360958050,1747163438737,-400.0,0.00013698,2]
[360958052,1747163438748,-2931.2,0.00013698,2]
[360958054,1747163438759,-3472.62,0.00013698,2]
[360958056,1747163438774,-899.54,0.00013698,2]
[360958059,1747163438785,-400.0,0.00013698,2]
[360958061,1747163438799,-400.0,0.00013698,2]
[360958063,1747163438815,-542.47887358,0.00013698,2]
[360958065,1747163438836,-400.0,0.00013698,2]
[360958067,1747163438847,-1823.91,0.00013698,2]
[360958069,1747163438858,-400.0,0.00013698,2]
[360958071,1747163438868,-400.0,0.00013698,2]
[360958073,1747163438879,-1331.25,0.00013698,2]
[360958075,1747163438889,-3093.52,0.00013698,2]
[360958077,1747163438900,-453.73,0.00013698,2]
[360958080,1747163438911,-400.0,0.00013698,2]
[360958082,1747163438921,-400.0,0.00013698,2]
[360958084,1747163438932,-400.0,0.00013698,2]
[360958086,1747163438942,-2059.0,0.00013698,2]
[360958088,1747163438953,-1096.92,0.00013698,2]
[360958090,1747163438964,-242.23981622,0.00013698,2]
[360958092,1747163438974,-4165.77,0.00013698,2]
[360958095,1747163438985,-511.28,0.00013698,2]
[360958097,1747163438996,-400.0,0.00013698,2]
[360958099,1747163439006,-400.0,0.00013698,2]
[360958101,1747163439016,-508.46,0.00013698,2]
[360958103,1747163439026,-400.0,0.00013698,2]
[360958105,1747163439036,-424.31,0.00013698,2]
[360958107,1747163439047,-400.0,0.00013698,2]
[360958109,1747163439058,-400.0,0.00013698,2]
[360958111,1747163439068,-400.0,0.00013698,2]
[360958114,1747163439078,-400.0,0.00013698,2]
[360958116,1747163439089,-2854.55,0.00013698,2]
[360958118,1747163439100,-400.0,0.00013698,2]
[360958120,1747163439110,-400.0,0.00013698,2]
[360958122,1747163439120,-1668.71,0.00013698,2]
[360958124,1747163439131,-400.0,0.00013698,2]
[360958126,1747163439141,-300.0,0.00013698,2]
[360958129,1747163439153,-400.0,0.00013698,2]
[360958131,1747163439163,-400.0,0.00013698,2]
[360958133,1747163439174,-400.0,0.00013698,2]
[360958135,1747163439184,-2845.17,0.00013698,2]
[360958137,1747163439195,-400.0,0.00013698,2]
[360958139,1747163439205,-400.0,0.00013698,2]
[360958141,1747163439216,-400.0,0.00013698,2]
[360958144,1747163439227,-538.11,0.00013698,2]
[360958146,1747163439238,-9645.51,0.00013698,2]
[360958148,1747163439248,-400.0,0.00013698,2]
[360958150,1747163439258,-509.75,0.00013698,2]
[360958152,1747163439272,-400.0,0.00013698,2]
[360958154,1747163439282,-400.0,0.00013698,2]
[360958156,1747163439292,-677.24,0.00013698,2]
[360958158,1747163439303,-400.0,0.00013698,2]
[360958160,1747163439315,-400.0,0.00013698,2]
[360958163,1747163439325,-400.0,0.00013698,2]
[360958165,1747163439335,-901.45,0.00013698,2]
[360958167,1747163439347,-1235.57,0.00013698,2]
[360958169,1747163439357,-400.0,0.00013698,2]
[360958171,1747163439367,-400.0,0.00013698,2]
[360958173,1747163439379,-2019.7,0.00013698,2]
[360958175,1747163439390,-400.0,0.00013698,2]
[360958178,1747163439400,-400.0,0.00013698,2]
[360958180,1747163439410,-400.0,0.00013698,2]
[360958182,1747163439421,-2305.27,0.00013698,2]
[360958184,1747163439431,-432.84,0.00013698,2]
[360958185,1747163439442,-1712.55,0.00013698,2]
[360958187,1747163439453,-400.0,0.00013698,2]
[360958190,1747163439463,-400.0,0.00013698,2]
[360958192,1747163439474,-502.64,0.00013698,2]
[360958194,1747163439485,-3505.07,0.00013698,2]
[360958196,1747163439495,-400.0,0.00013698,2]
[360958198,1747163439505,-1944.86,0.00013698,2]
[360958200,1747163439515,-400.0,0.00013698,2]
[360958202,1747163439525,-400.0,0.00013698,2]
[360958204,1747163439535,-400.0,0.00013698,2]
[360958206,1747163439546,-400.0,0.00013698,2]
[360958208,1747163439556,-1167.48,0.00013698,2]
[360958210,1747163439568,-400.0,0.00013698,2]
[360958213,1747163439579,-665.16,0.00013698,2]
[360958214,1747163439589,-400.0,0.00013698,2]
[360958215,1747163439600,-400.0,0.00013698,2]
[360958216,1747163439610,-550.98,0.00013698,2]
[360958217,1747163439620,-1410.79,0.00013698,2]
[360958218,1747163439630,-400.0,0.00013698,2]
[360958219,1747163439640,-414.36,0.00013698,2]
[360958220,1747163439650,-824.93,0.00013698,2]
[360958221,1747163439661,-1272.9,0.00013698,2]
[360958222,1747163439671,-400.0,0.00013698,2]
[360958223,1747163439682,-10859.5,0.00013698,2]
[360958224,1747163439692,-400.0,0.00013698,2]
[360958225,1747163439701,-13840.35,0.00013698,2]
[360958226,1747163439711,-3091.91,0.00013698,2]
[360958227,1747163439722,-400.0,0.00013698,2]
[360958228,1747163439732,-2513.8,0.00013698,2]
[360958229,1747163439742,-5100.36,0.00013698,2]
[360958230,1747163439752,-400.0,0.00013698,2]
[360958231,1747163439762,-400.0,0.00013698,2]
[360958232,1747163439772,-400.0,0.00013698,2]
[360958233,1747163439782,-400.0,0.00013698,2]
[360958234,1747163439792,-943.24,0.00013698,2]
[360958235,1747163439803,-423.55,0.00013698,2]
[360958236,1747163439814,-1232.15,0.00013698,2]
[360958237,1747163439824,-400.0,0.00013698,2]
[360958238,1747163439834,-400.0,0.00013698,2]
[360958239,1747163439845,-3367.05,0.00013698,2]
[360958240,1747163439855,-503.66072332,0.00013698,2]
[360958241,1747163439865,-400.0,0.00013698,2]
[360958242,1747163439876,-617.97,0.00013698,2]
[360958243,1747163439886,-400.0,0.00013698,2]
[360958244,1747163439897,-400.0,0.00013698,2]
[360958245,1747163439907,-400.0,0.00013698,2]
[360958246,1747163439917,-400.0,0.00013698,2]
[360958247,1747163439927,-400.0,0.00013698,2]
[360958248,1747163439937,-1166.3,0.00013698,2]
[360958250,1747163439948,-400.0,0.00013698,2]
[360958251,1747163439957,-400.0,0.00013698,2]
[360958252,1747163439968,-400.0,0.00013698,2]
[360958253,1747163439978,-400.0,0.00013698,2]
[360958254,1747163439988,-400.0,0.00013698,2]
[360958255,1747163439999,-564.6,0.00013698,2]
[360958256,1747163440009,-570.55,0.00013698,2]
[360958257,1747163440019,-400.0,0.00013698,2]
[360958258,1747163440028,-400.0,0.00013698,2]
[360958259,1747163440038,-5504.96,0.00013698,2]
[360958260,1747163440048,-400.0,0.00013698,2]
[360958261,1747163440058,-400.0,0.00013698,2]
[360958262,1747163440071,-400.0,0.00013698,2]
[360958263,1747163440081,-4813.08,0.00013698,2]
[360958264,1747163440091,-400.0,0.00013698,2]
[360958265,1747163440101,-550.32,0.00013698,2]
[360958266,1747163440111,-400.0,0.00013698,2]
[360958267,1747163440121,-511.58,0.00013698,2]
[360958268,1747163440131,-400.0,0.00013698,2]
[360958269,1747163440142,-4925.99,0.00013698,2]
[360958270,1747163440152,-400.0,0.00013698,2]
[360958272,1747163440163,-400.0,0.00013698,2]
[360958274,1747163440172,-479.59,0.00013698,2]
[360958276,1747163440182,-1025.2,0.00013698,2]
[360958278,1747163440193,-18691.35,0.00013698,2]
[360958280,1747163440203,-400.0,0.00013698,2]
[360958282,1747163440215,-1610.29,0.00013698,2]
[360958283,1747163440225,-636.92,0.00013698,2]
[360958284,1747163440235,-3889.29,0.00013698,2]
[360958285,1747163440244,-1415.16,0.00013698,2]
[360958286,1747163440254,-400.0,0.00013698,2]
[360958287,1747163440276,-1451.79,0.00013698,2]
[360958288,1747163440291,-408.31,0.00013698,2]
[360958289,1747163440302,-400.0,0.00013698,2]
[360958290,1747163440452,-793.64,0.00013698,2]
[360958291,1747163440463,-400.0,0.00013698,2]
[360958292,1747163440472,-400.0,0.00013698,2]
[360958293,1747163440482,-1186.93,0.00013698,2]
[360958294,1747163440492,-2114.08,0.00013698,2]
[360958296,1747163440502,-400.0,0.00013698,2]
[360958298,1747163440511,-400.0,0.00013698,2]
[360958300,1747163440521,-400.0,0.00013698,2]
[360958302,1747163440531,-444.17,0.00013698,2]
[360958304,1747163440540,-400.0,0.00013698,2]
[360958306,1747163440549,-400.0,0.00013698,2]
[360958308,1747163440559,-885.63,0.00013698,2]
[360958310,1747163440571,-277.30271518,0.00013698,2]
[360958312,1747163440581,-616.72,0.00013698,2]
[360958313,1747163440592,-634.52,0.00013698,2]
[360958314,1747163440603,-4738.78,0.00013698,2]
[360958315,1747163440613,-400.0,0.00013698,2]
[360958318,1747163440623,-3404.53,0.00013698,2]
[360958320,1747163440633,-1013.48,0.00013698,2]
[360958322,1747163440644,-400.0,0.00013698,2]
[360958324,1747163440653,-564.9,0.00013698,2]
[360958326,1747163440663,-400.0,0.00013698,2]
[360958328,1747163440673,-4199.03,0.00013698,2]
[360958330,1747163440683,-2135.79,0.00013698,2]
[360958332,1747163440694,-1011.99,0.00013698,2]
[360958334,1747163440704,-569.89,0.00013698,2]
[360958336,1747163440714,-400.0,0.00013698,2]
[360958338,1747163440724,-400.0,0.00013698,2]
[360958340,1747163440733,-400.0,0.00013698,2]
[360958342,1747163440743,-2568.15,0.00013698,2]
[360958344,1747163440752,-400.0,0.00013698,2]
[360958346,1747163440762,-400.0,0.00013698,2]
[360958348,1747163440771,-1075.07,0.00013698,2]
[360958350,1747163440781,-400.0,0.00013698,2]
[360958352,1747163440792,-2576.74,0.00013698,2]
[360958354,1747163440801,-6341.3,0.00013698,2]
[360958356,1747163440813,-400.0,0.00013698,2]
[360958359,1747163440822,-928.05,0.00013698,2]
[360958361,1747163440833,-400.0,0.00013698,2]
[360958363,1747163440843,-1890.92,0.00013698,2]
[360958365,1747163440859,-400.0,0.00013698,2]
[360958367,1747163440869,-400.0,0.00013698,2]
[360958370,1747163440879,-400.0,0.00013698,2]
[360958372,1747163440889,-400.0,0.00013698,2]
[360958374,1747163440899,-400.0,0.00013698,2]
[360958376,1747163440909,-6216.69,0.00013698,2]
[360958378,1747163440919,-500.0,0.00013698,2]
[360958380,1747163440930,-1359.15,0.00013698,2]
[360958382,1747163440939,-581.5,0.00013698,2]
[360958384,1747163440949,-423.07,0.00013698,2]
[360958386,1747163440959,-400.0,0.00013698,2]
[360958388,1747163440969,-742.89,0.00013698,2]
[360958390,1747163440979,-2612.92,0.00013698,2]
[360958392,1747163440988,-400.0,0.00013698,2]
[360958394,1747163440998,-837.08,0.00013698,2]
[360958396,1747163441008,-400.0,0.00013698,2]
[360958399,1747163441018,-676.87,0.00013698,2]
[360958401,1747163441028,-400.0,0.00013698,2]
[360958403,1747163441037,-400.0,0.00013698,2]
[360958405,1747163441047,-400.0,0.00013698,2]
[360958407,1747163441057,-400.0,0.00013698,2]
[360958409,1747163441069,-504.69,0.00013698,2]
[360958411,1747163441079,-1967.43,0.00013698,2]
[360958413,1747163441089,-361.44193574,0.00013698,2]
[360958415,1747163441098,-4671.65,0.00013698,2]
[360958417,1747163441107,-628.25,0.00013698,2]
[360958419,1747163441117,-401.69,0.00013698,2]
[360958422,1747163441127,-1293.32,0.00013698,2]
[360958424,1747163441136,-2153.57,0.00013698,2]
[360958426,1747163441146,-209.85749716,0.00013698,2]
[360958428,1747163441155,-400.0,0.00013698,2]
[360958430,1747163441165,-400.0,0.00013698,2]
[360958432,1747163441174,-400.0,0.00013698,2]
[360958434,1747163441184,-485.9,0.00013698,2]
[360958436,1747163441194,-1047.01,0.00013698,2]
[360958438,1747163441203,-595.07,0.00013698,2]
[360958440,1747163441212,-400.0,0.00013698,2]
[360958442,1747163441222,-957.71,0.00013698,2]
[360958444,1747163441231,-400.0,0.00013698,2]
[360958446,1747163441241,-400.0,0.00013698,2]
[360958448,1747163441251,-400.0,0.00013698,2]
[360958450,1747163441260,-708.0,0.00013698,2]
[360958452,1747163441273,-3333.33,0.00013698,2]
[360958454,1747163441282,-3333.33,0.00013698,2]
[360958456,1747163441292,-400.0,0.00013698,2]
[360958458,1747163441302,-3333.33,0.00013698,2]
[360958460,1747163441314,-3333.33,0.00013698,2]
[360958462,1747163441323,-3333.33,0.00013698,2]
[360958464,1747163441333,-3333.33,0.00013698,2]
[360958466,1747163441343,-400.0,0.00013698,2]
[360958468,1747163441353,-3333.33,0.00013698,2]
[360958470,1747163441362,-3333.33,0.00013698,2]
[360958472,1747163441372,-1173.13,0.00013698,2]
[360958474,1747163441381,-3333.33,0.00013698,2]
[360958476,1747163441391,-3333.33,0.00013698,2]
[360958478,1747163441400,-1323.4,0.00013698,2]
[360958480,1747163441410,-1191.71,0.00013698,2]
[360958482,1747163441420,-3333.33,0.00013698,2]
[360958484,1747163441429,-495.76,0.00013698,2]
[360958486,1747163441439,-3333.33,0.00013698,2]
[360958488,1747163441449,-3333.33,0.00013698,2]
[360958490,1747163441459,-400.0,0.00013698,2]
[360958492,1747163441468,-3333.33,0.00013698,2]
[360958494,1747163441478,-3333.33,0.00013698,2]
[360958496,1747163441487,-3333.33,0.00013698,2]
[360958498,1747163441497,-3333.33,0.00013698,2]
[360958500,1747163441508,-3333.33,0.00013698,2]
[360958502,1747163441518,-3333.33,0.00013698,2]
[360958505,1747163441528,-3333.33,0.00013698,2]
[360958507,1747163441541,-787.24,0.00013698,2]
[360958509,1747163441550,-3333.33,0.00013698,2]
[360958511,1747163441560,-3333.33,0.00013698,2]
[360958513,1747163441571,-3333.33,0.00013698,2]
[360958515,1747163441582,-3333.41,0.00013698,2]
[360958517,1747163441591,-519.17,0.00013698,2]
[360958519,1747163441602,-400.0,0.00013698,2]
[360958521,1747163441612,-3428.33,0.00013698,2]
[360958523,1747163441622,-400.0,0.00013698,2]
[360958525,1747163441631,-400.0,0.00013698,2]
[360958527,1747163441641,-2636.8,0.00013698,2]
[360958529,1747163441650,-400.0,0.00013698,2]
[360958531,1747163441660,-400.0,0.00013698,2]
[360958533,1747163441671,-494.17,0.00013698,2]
[360958535,1747163441681,-400.0,0.00013698,2]
[360958537,1747163441691,-400.0,0.00013698,2]
[360958539,1747163441700,-963.0,0.00013698,2]
[360958541,1747163441710,-400.0,0.00013698,2]
[360958544,1747163441720,-3949.79,0.00013698,2]
[360958546,1747163441731,-400.0,0.00013698,2]
[360958548,1747163441740,-1443.59,0.00013698,2]
[360958550,1747163441750,-727.17,0.00013698,2]
[360958552,1747163441760,-400.0,0.00013698,2]
[360958554,1747163441770,-1488.49,0.00013698,2]
[360958556,1747163441780,-858.64,0.00013698,2]
[360958558,1747163441790,-400.0,0.00013698,2]
[360958560,1747163441800,-1891.22,0.00013698,2]
[360958562,1747163441810,-1586.64,0.00013698,2]
[360958564,1747163441822,-2794.04,0.00013698,2]
[360958566,1747163441832,-400.0,0.00013698,2]
[360958569,1747163441842,-400.0,0.00013698,2]
[360958571,1747163441852,-400.0,0.00013698,2]
[360958573,1747163441862,-549.39,0.00013698,2]
[360958575,1747163441872,-400.0,0.00013698,2]
[360958577,1747163441881,-582.36,0.00013698,2]
[360958579,1747163441891,-400.0,0.00013698,2]
[360958581,1747163441901,-11098.42,0.00013698,2]
[360958583,1747163441911,-400.0,0.00013698,2]
[360958585,1747163441920,-400.0,0.00013698,2]
[360958587,1747163441930,-7881.93,0.00013698,2]
[360958589,1747163441939,-400.0,0.00013698,2]
[360958591,1747163441949,-400.0,0.00013698,2]
[360958593,1747163441959,-2000.76,0.00013698,2]
[360958595,1747163441969,-533.52,0.00013698,2]
[360958597,1747163441979,-400.0,0.00013698,2]
[360958599,1747163441989,-17737.4,0.00013698,2]
[360958601,1747163441999,-1317.71,0.00013698,2]
[360958603,1747163442009,-400.0,0.00013698,2]
[360958605,1747163442019,-400.0,0.00013698,2]
[360958607,1747163442030,-400.0,0.00013698,2]
[360958609,1747163442040,-536.17,0.00013698,2]
[360958611,1747163442049,-400.0,0.00013698,2]
[360958613,1747163442059,-832.14,0.00013698,2]
[360958615,1747163442070,-400.0,0.00013698,2]
[360958617,1747163442080,-400.0,0.00013698,2]
[360958619,1747163442090,-400.0,0.00013698,2]
[360958621,1747163442100,-400.0,0.00013698,2]
[360958623,1747163442110,-2777.23,0.00013698,2]
[360958625,1747163442119,-507.16,0.00013698,2]
[360958627,1747163442129,-452.015328,0.00013699,2]
[360958629,1747163442139,-917.893873,0.00013699,2]
[360958631,1747163442148,-151.0,0.000137,2]
[360958633,1747163442158,-151.0,0.000138,2]
[360958635,1747163442168,-151.0,0.000138,2]